{"text_format":"1","workbook":"xlsx","n_sheets":3,"sheets":["Sheet1","Sheet2","Sheet3"],"not_rendered":{"charts":0,"images":0,"macros":1,"external_links":0,"defined_names":3,"comments":0,"pivot_tables":0},"unopened":[],"bounds":{"document_bytes":16777216,"sheet_cells":100000,"rows_first":2000,"rows_last":500,"rows_between":2000,"halvings":0,"cell_chars":16384,"cell_head_chars":4096},"cells_cut":0,"cells_raw":0,"read":"whole","date_system":"1900"}

{"sheet":"Sheet1","index":0,"n_rows":300,"n_cols":20,"rows_kept":300,"cut":false,"hidden":false,"merged":[[0,17,0,19],[6,8,6,9],[10,4,10,5]]}
["Nat","UE - HUE",null,null,null,null,null,null,null,null,null,null,null,null,null,null,null,"Validation data"]
["RO",{"$f":"IF(ISBLANK(A2),\"\",(IF(OR(A2=\"AT\",A2=\"BE\",A2=\"BG\",A2=\"CY\",A2=\"CZ\",A2=\"DE\",A2=\"DK\",A2=\"EE\",A2=\"EL\",A2=\"ES\",A2=\"FI\",A2=\"FR\",A2=\"HR\",A2=\"HU\",A2=\"IE\",A2=\"IT\",A2=\"LT\",A2=\"LU\", A2=\"LV\",A2=\"MT\",A2=\"NL\",A2=\"PL\",A2=\"PT\",A2=\"RO\",A2=\"SE\",A2=\"SI\",A2=\"SK\",A2=\"UK\"),\"UE\",\"Hors UE\")))","v":"UE"},null,null,null,null,null,null,null,null,null,null,null,null,null,null,null,"Nationaliteit","Land / Pays","UE-HUE"]
["RO","UE",null,null,null,null,null,null,null,null,null,null,null,null,null,null,null,"AF","Afghanistan","UE"]
["RO","UE",null,null,null,null,null,null,null,null,null,null,null,null,null,null,null,"AX","Åland","HUE"]
["RO","UE",null,null,null,null,null,null,null,null,null,null,null,null,null,null,null,"AL","Albanië"]
["PT","UE",null,null,null,null,null,null,null,null,null,null,null,null,null,null,null,"DZ","Algerije"]
["PT","UE",null,null,"Nat","UE - HUE",null,null,"Zone de critère",null,null,null,null,null,null,null,null,"VI","Amerikaanse Maagdeneilanden"]
["RO","UE",null,null,"BE",null,null,null,"Nat","UE - HUE",null,null,null,null,null,null,null,"AS","Amerikaans-Samoa"]
["RO","UE",null,null,null,null,null,null,{"$f":"IF($E$8=\"\",\"\",\"=\"&$E$8)","v":"=BE"},null,null,null,null,null,null,null,null,"AD","Andorra"]
["PT","UE",null,null,null,null,null,null,null,null,null,null,null,null,null,null,null,"AO","Angola"]
["RO","UE",null,null,"Données Filtrées",null,null,null,null,null,null,null,null,null,null,null,null,"AI","Anguilla"]
["RO","UE",null,null,"Nat","UE - HUE",null,null,null,null,null,null,null,null,null,null,null,"AQ","Antarctica"]
["RO","UE",null,null,"BE","UE",null,null,null,null,null,null,null,null,null,null,null,"AG","Angigua en Barbuda"]
["RO","UE",null,null,"BE","UE",null,null,null,null,null,null,null,null,null,null,null,"AR","Argentinië"]
["RO","UE",null,null,"BE","UE",null,null,null,null,null,null,null,null,null,null,null,"AM","Armenië"]
["PL","UE",null,null,"BE","UE",null,null,null,null,null,null,null,null,null,null,null,"AW","Aruba"]
["PL","UE",null,null,"BE","UE",null,null,null,null,null,null,null,null,null,null,null,"AU","Australië"]
["PL","UE",null,null,"BE","UE",null,null,null,null,null,null,null,null,null,null,null,"AZ","Azerbeidzjan"]
["PL","UE",null,null,"BE","UE",null,null,null,null,null,null,null,null,null,null,null,"BS","Bahama's"]
["FR","UE",null,null,"BE","UE",null,null,null,null,null,null,null,null,null,null,null,"BH","Bahrein"]
["RO","UE",null,null,"BE","UE",null,null,null,null,null,null,null,null,null,null,null,"BD","Bangladesh"]
["PL","UE",null,null,"BE","UE",null,null,null,null,null,null,null,null,null,null,null,"BB","Barbados"]
["RO","UE",null,null,"BE","UE",null,null,null,null,null,null,null,null,null,null,null,"BE","België"]
["RO","UE",null,null,"BE","UE",null,null,null,null,null,null,null,null,null,null,null,"BZ","Belize"]
["RO","UE",null,null,null,null,null,null,null,null,null,null,null,null,null,null,null,"BJ","Benin"]
["PL","UE",null,null,null,null,null,null,null,null,null,null,null,null,null,null,null,"BM","Bermuda"]
["PL","UE",null,null,null,null,null,null,null,null,null,null,null,null,null,null,null,"BT","Bhutan"]
["FR","UE",null,null,null,null,null,null,null,null,null,null,null,null,null,null,null,"BO","Bolivia"]
["RO","UE",null,null,null,null,null,null,null,null,null,null,null,null,null,null,null,"BQ","Bonaire, Sint Eustatius en Saba"]
["RO","UE",null,null,null,null,null,null,null,null,null,null,null,null,null,null,null,"BA","Bosnië en Herzigovina"]
["RO","UE",null,null,null,null,null,null,null,null,null,null,null,null,null,null,null,"BW","Botswana"]
["RO","UE",null,null,null,null,null,null,null,null,null,null,null,null,null,null,null,"BV","Bouvet"]
["RO","UE",null,null,null,null,null,null,null,null,null,null,null,null,null,null,null,"BR","Brazilië"]
["RO","UE",null,null,null,null,null,null,null,null,null,null,null,null,null,null,null,"VG","Britse Maagdeneilanden"]
["RO","UE",null,null,null,null,null,null,null,null,null,null,null,null,null,null,null,"IO","Brits Indische Oceaanterritorium"]
["RO","UE",null,null,null,null,null,null,null,null,null,null,null,null,null,null,null,"BN","Brunei"]
["RO","UE",null,null,null,null,null,null,null,null,null,null,null,null,null,null,null,"BG","Bulgarije"]
["RO","UE",null,null,null,null,null,null,null,null,null,null,null,null,null,null,null,"BF","Burkina Faso"]
["NL","UE",null,null,null,null,null,null,null,null,null,null,null,null,null,null,null,"BI","Burundi"]
["PT","UE",null,null,null,null,null,null,null,null,null,null,null,null,null,null,null,"KH","Cambodja"]
["RO","UE",null,null,null,null,null,null,null,null,null,null,null,null,null,null,null,"CA","Canada"]
["BG","UE",null,null,null,null,null,null,null,null,null,null,null,null,null,null,null,"CF","Centraal-Afrikaanse Republiek"]
["PT","UE",null,null,null,null,null,null,null,null,null,null,null,null,null,null,null,"CL","Chili"]
["RO","UE",null,null,null,null,null,null,null,null,null,null,null,null,null,null,null,"CN","China"]
["RO","UE",null,null,null,null,null,null,null,null,null,null,null,null,null,null,null,"CX","Christmaseiland"]
["RO","UE",null,null,null,null,null,null,null,null,null,null,null,null,null,null,null,"CC","Cocoseilanden"]
["RO","UE",null,null,null,null,null,null,null,null,null,null,null,null,null,null,null,"CO","Colombia"]
["FR","UE",null,null,null,null,null,null,null,null,null,null,null,null,null,null,null,"KM","Comoren"]
["ES","UE",null,null,null,null,null,null,null,null,null,null,null,null,null,null,null,"CG","Congo-Brazzaville"]
["PL","UE",null,null,null,null,null,null,null,null,null,null,null,null,null,null,null,"CD","Congo-Kinshasa"]
["IT","UE",null,null,null,null,null,null,null,null,null,null,null,null,null,null,null,"CK","Cookeilanden"]
["PT","UE",null,null,null,null,null,null,null,null,null,null,null,null,null,null,null,"CR","Costa Rica"]
["RO","UE",null,null,null,null,null,null,null,null,null,null,null,null,null,null,null,"CU","Cuba"]
["PL","UE",null,null,null,null,null,null,null,null,null,null,null,null,null,null,null,"CW","Curaçao"]
["RO","UE",null,null,null,null,null,null,null,null,null,null,null,null,null,null,null,"CY","Cyprus"]
["PL","UE",null,null,null,null,null,null,null,null,null,null,null,null,null,null,null,"DK","Denemarken"]
["RO","UE",null,null,null,null,null,null,null,null,null,null,null,null,null,null,null,"DJ","Djibouti"]
["RO","UE",null,null,null,null,null,null,null,null,null,null,null,null,null,null,null,"DM","Dominica"]
["BG","UE",null,null,null,null,null,null,null,null,null,null,null,null,null,null,null,"DO","Dominicaanse Republiek"]
["BG","UE",null,null,null,null,null,null,null,null,null,null,null,null,null,null,null,"DE","Duitsland"]
["PL","UE",null,null,null,null,null,null,null,null,null,null,null,null,null,null,null,"EC","Ecuador"]
["RO","UE",null,null,null,null,null,null,null,null,null,null,null,null,null,null,null,"EG","Egypte"]
["BE","UE",null,null,null,null,null,null,null,null,null,null,null,null,null,null,null,"SV","El Salvador"]
["BE","UE",null,null,null,null,null,null,null,null,null,null,null,null,null,null,null,"GQ","Equatoriaal-Guinea"]
["BE","UE",null,null,null,null,null,null,null,null,null,null,null,null,null,null,null,"ER","Eritrea"]
["BE",{"$f":"IF(ISBLANK(A66),\"\",(IF(OR(A66=\"AT\",A66=\"BE\",A66=\"BG\",A66=\"CY\",A66=\"CZ\",A66=\"DE\",A66=\"DK\",A66=\"EE\",A66=\"EL\",A66=\"ES\",A66=\"FI\",A66=\"FR\",A66=\"HR\",A66=\"HU\",A66=\"IE\",A66=\"IT\",A66=\"LT\",A66=\"LU\", A66=\"LV\",A66=\"MT\",A66=\"NL\",A66=\"PL\",A66=\"PT\",A66=\"RO\",A66=\"SE\",A66=\"SI\",A66=\"SK\",A66=\"UK\"),\"UE\",\"Hors UE\")))","v":"UE"},null,null,null,null,null,null,null,null,null,null,null,null,null,null,null,"EE","Estland"]
["BE","UE",null,null,null,null,null,null,null,null,null,null,null,null,null,null,null,"ET","Ethiopië"]
["BE","UE",null,null,null,null,null,null,null,null,null,null,null,null,null,null,null,"FO","Faeröer"]
["BE","UE",null,null,null,null,null,null,null,null,null,null,null,null,null,null,null,"FK","Falklandeilanden"]
["BE","UE",null,null,null,null,null,null,null,null,null,null,null,null,null,null,null,"FJ","Fiji"]
["BE","UE",null,null,null,null,null,null,null,null,null,null,null,null,null,null,null,"PH","Filipijnen"]
["BE","UE",null,null,null,null,null,null,null,null,null,null,null,null,null,null,null,"FI","Finland"]
["BG","UE",null,null,null,null,null,null,null,null,null,null,null,null,null,null,null,"FR","Frankrijk"]
["BG","UE",null,null,null,null,null,null,null,null,null,null,null,null,null,null,null,"TF","Franse Zuidelijke en Antarctische Gebieden"]
["BG","UE",null,null,null,null,null,null,null,null,null,null,null,null,null,null,null,"GF","Frans-Guyana"]
["BG","UE",null,null,null,null,null,null,null,null,null,null,null,null,null,null,null,"PF","Frans-Polynesië"]
["BG","UE",null,null,null,null,null,null,null,null,null,null,null,null,null,null,null,"GA","Gabon"]
["BG","UE",null,null,null,null,null,null,null,null,null,null,null,null,null,null,null,"GM","Gambia"]
["PL","UE",null,null,null,null,null,null,null,null,null,null,null,null,null,null,null,"GE","Georgië"]
["NL","UE",null,null,null,null,null,null,null,null,null,null,null,null,null,null,null,"GH","Ghana"]
["BG","UE",null,null,null,null,null,null,null,null,null,null,null,null,null,null,null,"GI","Gibraltar"]
["BG","UE",null,null,null,null,null,null,null,null,null,null,null,null,null,null,null,"GD","Grenada"]
["SK","UE",null,null,null,null,null,null,null,null,null,null,null,null,null,null,null,"EL","Griekenland"]
["PT","UE",null,null,null,null,null,null,null,null,null,null,null,null,null,null,null,"GL","Groenland"]
["BG","UE",null,null,null,null,null,null,null,null,null,null,null,null,null,null,null,"GP","Guadeloupe"]
["BG","UE",null,null,null,null,null,null,null,null,null,null,null,null,null,null,null,"GU","Guam"]
["BG","UE",null,null,null,null,null,null,null,null,null,null,null,null,null,null,null,"GT","Guatemala"]
["RO","UE",null,null,null,null,null,null,null,null,null,null,null,null,null,null,null,"GG","Guernsey"]
["BG","UE",null,null,null,null,null,null,null,null,null,null,null,null,null,null,null,"GN","Guinee"]
["BG","UE",null,null,null,null,null,null,null,null,null,null,null,null,null,null,null,"GW","Guinee-Bissau"]
["BG","UE",null,null,null,null,null,null,null,null,null,null,null,null,null,null,null,"GY","Guyana"]
["LT","UE",null,null,null,null,null,null,null,null,null,null,null,null,null,null,null,"HT","Haïti"]
["BG","UE",null,null,null,null,null,null,null,null,null,null,null,null,null,null,null,"HM","Heard en MacDonaldeilanden"]
["BG","UE",null,null,null,null,null,null,null,null,null,null,null,null,null,null,null,"HN","Honduras"]
["RO","UE",null,null,null,null,null,null,null,null,null,null,null,null,null,null,null,"HU","Hongarije"]
["PL","UE",null,null,null,null,null,null,null,null,null,null,null,null,null,null,null,"HK","Hongkong"]
["PL","UE",null,null,null,null,null,null,null,null,null,null,null,null,null,null,null,"IE","Ierland"]
["RO","UE",null,null,null,null,null,null,null,null,null,null,null,null,null,null,null,"IS","Ijsland"]
["PL","UE",null,null,null,null,null,null,null,null,null,null,null,null,null,null,null,"IN","India"]
["PL","UE",null,null,null,null,null,null,null,null,null,null,null,null,null,null,null,"ID","Indonesië"]
["RO","UE",null,null,null,null,null,null,null,null,null,null,null,null,null,null,null,"IQ","Irak"]
["PL","UE",null,null,null,null,null,null,null,null,null,null,null,null,null,null,null,"IR","Iran"]
["BE","UE",null,null,null,null,null,null,null,null,null,null,null,null,null,null,null,"IL","Israël"]
["BD","Hors UE",null,null,null,null,null,null,null,null,null,null,null,null,null,null,null,"IT","Italië"]
["BD","Hors UE",null,null,null,null,null,null,null,null,null,null,null,null,null,null,null,"CI","Ivoorkust"]
["BD","Hors UE",null,null,null,null,null,null,null,null,null,null,null,null,null,null,null,"JM","Jamaica"]
["BE","UE",null,null,null,null,null,null,null,null,null,null,null,null,null,null,null,"JP","Japan"]
["BD","Hors UE",null,null,null,null,null,null,null,null,null,null,null,null,null,null,null,"YE","Jemen"]
["BD","Hors UE",null,null,null,null,null,null,null,null,null,null,null,null,null,null,null,"JE","Jersey"]
["BD","Hors UE",null,null,null,null,null,null,null,null,null,null,null,null,null,null,null,"JO","Jordanië"]
["RO","UE",null,null,null,null,null,null,null,null,null,null,null,null,null,null,null,"KY","Kaaimaneilanden"]
["PL","UE",null,null,null,null,null,null,null,null,null,null,null,null,null,null,null,"CV","Kaapverdië"]
["BG","UE",null,null,null,null,null,null,null,null,null,null,null,null,null,null,null,"CM","Kameroen"]
["IT","UE",null,null,null,null,null,null,null,null,null,null,null,null,null,null,null,"KZ","Kazachstan"]
["PT","UE",null,null,null,null,null,null,null,null,null,null,null,null,null,null,null,"XK","Kosovo"]
["PL","UE",null,null,null,null,null,null,null,null,null,null,null,null,null,null,null,"KE","Kenia"]
["PL","UE",null,null,null,null,null,null,null,null,null,null,null,null,null,null,null,"KG","Kirgizië"]
["PL","UE",null,null,null,null,null,null,null,null,null,null,null,null,null,null,null,"KI","Kiribati"]
["RO","UE",null,null,null,null,null,null,null,null,null,null,null,null,null,null,null,"UM","Kleine Pacifische eilanden Verenigde Staten"]
["RO","UE",null,null,null,null,null,null,null,null,null,null,null,null,null,null,null,"KW","Koeweit"]
["RO","UE",null,null,null,null,null,null,null,null,null,null,null,null,null,null,null,"HR","Kroatië"]
["RO","UE",null,null,null,null,null,null,null,null,null,null,null,null,null,null,null,"LA","Laos"]
["PT","UE",null,null,null,null,null,null,null,null,null,null,null,null,null,null,null,"LS","Lesotho"]
["RO","UE",null,null,null,null,null,null,null,null,null,null,null,null,null,null,null,"LV","Letland"]
["RO","UE",null,null,null,null,null,null,null,null,null,null,null,null,null,null,null,"LB","Libanon"]
["FR","UE",null,null,null,null,null,null,null,null,null,null,null,null,null,null,null,"LR","Liberia"]
["BG","UE",null,null,null,null,null,null,null,null,null,null,null,null,null,null,null,"LY","Libië"]
["PL","UE",null,null,null,null,null,null,null,null,null,null,null,null,null,null,null,"LI","Liechtenstein"]
["BG","UE",null,null,null,null,null,null,null,null,null,null,null,null,null,null,null,"LT","Litouwen"]
["BG",{"$f":"IF(ISBLANK(A130),\"\",(IF(OR(A130=\"AT\",A130=\"BE\",A130=\"BG\",A130=\"CY\",A130=\"CZ\",A130=\"DE\",A130=\"DK\",A130=\"EE\",A130=\"EL\",A130=\"ES\",A130=\"FI\",A130=\"FR\",A130=\"HR\",A130=\"HU\",A130=\"IE\",A130=\"IT\",A130=\"LT\",A130=\"LU\", A130=\"LV\",A130=\"MT\",A130=\"NL\",A130=\"PL\",A130=\"PT\",A130=\"RO\",A130=\"SE\",A130=\"SI\",A130=\"SK\",A130=\"UK\"),\"UE\",\"Hors UE\")))","v":"UE"},null,null,null,null,null,null,null,null,null,null,null,null,null,null,null,"LU","Luxemburg"]
["RO","UE",null,null,null,null,null,null,null,null,null,null,null,null,null,null,null,"MO","Macau"]
["RO","UE",null,null,null,null,null,null,null,null,null,null,null,null,null,null,null,"MK","Macedonië"]
["PL","UE",null,null,null,null,null,null,null,null,null,null,null,null,null,null,null,"MG","Madagaskar"]
["RO","UE",null,null,null,null,null,null,null,null,null,null,null,null,null,null,null,"MW","Malawi"]
["FR","UE",null,null,null,null,null,null,null,null,null,null,null,null,null,null,null,"MV","Maldiven"]
["PL","UE",null,null,null,null,null,null,null,null,null,null,null,null,null,null,null,"MY","Maleisië"]
["PL","UE",null,null,null,null,null,null,null,null,null,null,null,null,null,null,null,"ML","Mali"]
["PT","UE",null,null,null,null,null,null,null,null,null,null,null,null,null,null,null,"MT","Malta"]
["BG","UE",null,null,null,null,null,null,null,null,null,null,null,null,null,null,null,"IM","Man (Isle of Man)"]
["RO","UE",null,null,null,null,null,null,null,null,null,null,null,null,null,null,null,"MA","Marokko"]
["PT","UE",null,null,null,null,null,null,null,null,null,null,null,null,null,null,null,"MH","Marshalleilanden"]
["PL","UE",null,null,null,null,null,null,null,null,null,null,null,null,null,null,null,"MQ","Martinique"]
["RO","UE",null,null,null,null,null,null,null,null,null,null,null,null,null,null,null,"MR","Mauritanië"]
["BG","UE",null,null,null,null,null,null,null,null,null,null,null,null,null,null,null,"MU","Mauritius"]
["RO","UE",null,null,null,null,null,null,null,null,null,null,null,null,null,null,null,"YT","Mayotte"]
["RO","UE",null,null,null,null,null,null,null,null,null,null,null,null,null,null,null,"MX","Mexico"]
["RO","UE",null,null,null,null,null,null,null,null,null,null,null,null,null,null,null,"FM","Micronesia"]
["RO","UE",null,null,null,null,null,null,null,null,null,null,null,null,null,null,null,"MD","Moldavië"]
["RO","UE",null,null,null,null,null,null,null,null,null,null,null,null,null,null,null,"MC","Monaco"]
["RO","UE",null,null,null,null,null,null,null,null,null,null,null,null,null,null,null,"MN","Mongolië"]
["RO","UE",null,null,null,null,null,null,null,null,null,null,null,null,null,null,null,"ME","Montenegro"]
["RO","UE",null,null,null,null,null,null,null,null,null,null,null,null,null,null,null,"MS","Montserrat"]
["RO","UE",null,null,null,null,null,null,null,null,null,null,null,null,null,null,null,"MZ","Mozambique"]
["RO","UE",null,null,null,null,null,null,null,null,null,null,null,null,null,null,null,"MM","Myanmar"]
["RO","UE",null,null,null,null,null,null,null,null,null,null,null,null,null,null,null,"NA","Namibië"]
["PL","UE",null,null,null,null,null,null,null,null,null,null,null,null,null,null,null,"NR","Nauru"]
["ES","UE",null,null,null,null,null,null,null,null,null,null,null,null,null,null,null,"NL","Nederland"]
["RO","UE",null,null,null,null,null,null,null,null,null,null,null,null,null,null,null,"NP","Nepal"]
["FR","UE",null,null,null,null,null,null,null,null,null,null,null,null,null,null,null,"NI","Nicaragua"]
["RO","UE",null,null,null,null,null,null,null,null,null,null,null,null,null,null,null,"NC","Nieuw-Caledonië"]
["RO","UE",null,null,null,null,null,null,null,null,null,null,null,null,null,null,null,"NZ","Nieuw-Zeeland"]
["RO","UE",null,null,null,null,null,null,null,null,null,null,null,null,null,null,null,"NE","Niger"]
["RO","UE",null,null,null,null,null,null,null,null,null,null,null,null,null,null,null,"NG","Nigeria"]
["RO","UE",null,null,null,null,null,null,null,null,null,null,null,null,null,null,null,"NU","Niue"]
["RO","UE",null,null,null,null,null,null,null,null,null,null,null,null,null,null,null,"MP","Noordelijke Marianen"]
["RO","UE",null,null,null,null,null,null,null,null,null,null,null,null,null,null,null,"KP","Noord-Korea"]
["RO","UE",null,null,null,null,null,null,null,null,null,null,null,null,null,null,null,"NO","Noorwegen"]
["PL","UE",null,null,null,null,null,null,null,null,null,null,null,null,null,null,null,"NF","Norfolk"]
["BG","UE",null,null,null,null,null,null,null,null,null,null,null,null,null,null,null,"UG","Oeganda"]
["RO","UE",null,null,null,null,null,null,null,null,null,null,null,null,null,null,null,"UA","Oekraïne"]
["PL","UE",null,null,null,null,null,null,null,null,null,null,null,null,null,null,null,"UZ","Oezbekistan"]
["RO","UE",null,null,null,null,null,null,null,null,null,null,null,null,null,null,null,"OM","Oman"]
["RO","UE",null,null,null,null,null,null,null,null,null,null,null,null,null,null,null,"AT","Oostenrijk"]
["PL","UE",null,null,null,null,null,null,null,null,null,null,null,null,null,null,null,"TL","Oost-Timor"]
["PL","UE",null,null,null,null,null,null,null,null,null,null,null,null,null,null,null,"PK","Pakistan"]
["RO","UE",null,null,null,null,null,null,null,null,null,null,null,null,null,null,null,"PW","Palau"]
["BG","UE",null,null,null,null,null,null,null,null,null,null,null,null,null,null,null,"PS","Palestina"]
["BG","UE",null,null,null,null,null,null,null,null,null,null,null,null,null,null,null,"PA","Panama"]
["RO","UE",null,null,null,null,null,null,null,null,null,null,null,null,null,null,null,"PG","Papoea-Nieuw-Guinea"]
["RO","UE",null,null,null,null,null,null,null,null,null,null,null,null,null,null,null,"PY","Paraguay"]
["RO","UE",null,null,null,null,null,null,null,null,null,null,null,null,null,null,null,"PE","Peru"]
["BG","UE",null,null,null,null,null,null,null,null,null,null,null,null,null,null,null,"PN","Pitcairneilanden"]
["PL","UE",null,null,null,null,null,null,null,null,null,null,null,null,null,null,null,"PL","Polen"]
["BG","UE",null,null,null,null,null,null,null,null,null,null,null,null,null,null,null,"PT","Portugal"]
["PL","UE",null,null,null,null,null,null,null,null,null,null,null,null,null,null,null,"PR","Puerto Rico"]
["FR","UE",null,null,null,null,null,null,null,null,null,null,null,null,null,null,null,"QA","Qatar"]
["RO","UE",null,null,null,null,null,null,null,null,null,null,null,null,null,null,null,"RE","Réunion"]
["PL","UE",null,null,null,null,null,null,null,null,null,null,null,null,null,null,null,"RO","Roemenië"]
["RO","UE",null,null,null,null,null,null,null,null,null,null,null,null,null,null,null,"RU","Rusland"]
["RO","UE",null,null,null,null,null,null,null,null,null,null,null,null,null,null,null,"RW","Rwanda"]
["RO","UE",null,null,null,null,null,null,null,null,null,null,null,null,null,null,null,"BL","Saint-Barthélemy"]
["RO","UE",null,null,null,null,null,null,null,null,null,null,null,null,null,null,null,"KN","Saint Kitts en Nevis"]
["BG","UE",null,null,null,null,null,null,null,null,null,null,null,null,null,null,null,"LC","Saint Lucia"]
["LT",{"$f":"IF(ISBLANK(A194),\"\",(IF(OR(A194=\"AT\",A194=\"BE\",A194=\"BG\",A194=\"CY\",A194=\"CZ\",A194=\"DE\",A194=\"DK\",A194=\"EE\",A194=\"EL\",A194=\"ES\",A194=\"FI\",A194=\"FR\",A194=\"HR\",A194=\"HU\",A194=\"IE\",A194=\"IT\",A194=\"LT\",A194=\"LU\", A194=\"LV\",A194=\"MT\",A194=\"NL\",A194=\"PL\",A194=\"PT\",A194=\"RO\",A194=\"SE\",A194=\"SI\",A194=\"SK\",A194=\"UK\"),\"UE\",\"Hors UE\")))","v":"UE"},null,null,null,null,null,null,null,null,null,null,null,null,null,null,null,"PM","Saint-Pierre en Miquelon"]
["RO","UE",null,null,null,null,null,null,null,null,null,null,null,null,null,null,null,"VC","Saint Vincent en de Grenadines"]
[null,"",null,null,null,null,null,null,null,null,null,null,null,null,null,null,null,"SB","Salomonseilanden"]
["RO","UE",null,null,null,null,null,null,null,null,null,null,null,null,null,null,null,"WS","Samoa"]
[null,"",null,null,null,null,null,null,null,null,null,null,null,null,null,null,null,"SM","San Marino"]
["RO","UE",null,null,null,null,null,null,null,null,null,null,null,null,null,null,null,"SA","Saoedi-Arabië"]
["ES","UE",null,null,null,null,null,null,null,null,null,null,null,null,null,null,null,"ST","Sao Tomé en Principe"]
["RO","UE",null,null,null,null,null,null,null,null,null,null,null,null,null,null,null,"SN","Senegal"]
["RO","UE",null,null,null,null,null,null,null,null,null,null,null,null,null,null,null,"RS","Servië"]
["RO","UE",null,null,null,null,null,null,null,null,null,null,null,null,null,null,null,"SC","Seychellen"]
["RO","UE",null,null,null,null,null,null,null,null,null,null,null,null,null,null,null,"SL","Siera Leone"]
["PT","UE",null,null,null,null,null,null,null,null,null,null,null,null,null,null,null,"SG","Singapore"]
["PL","UE",null,null,null,null,null,null,null,null,null,null,null,null,null,null,null,"SH","Sint-Helena, Ascension en Tristan da Cunha"]
["RO","UE",null,null,null,null,null,null,null,null,null,null,null,null,null,null,null,"MF","Sint-Maarten (Franse Antillen)"]
["RO","UE",null,null,null,null,null,null,null,null,null,null,null,null,null,null,null,"SX","Sint Maarten"]
["RO","UE",null,null,null,null,null,null,null,null,null,null,null,null,null,null,null,"SI","Slovenië"]
["PL","UE",null,null,null,null,null,null,null,null,null,null,null,null,null,null,null,"SK","Slowakije"]
["RO","UE",null,null,null,null,null,null,null,null,null,null,null,null,null,null,null,"SD","Soedan"]
["PT","UE",null,null,null,null,null,null,null,null,null,null,null,null,null,null,null,"SO","Somalië"]
["RO","UE",null,null,null,null,null,null,null,null,null,null,null,null,null,null,null,"ES","Spanje"]
["RO","UE",null,null,null,null,null,null,null,null,null,null,null,null,null,null,null,"SJ","Spitsbergen en Jan Mayen"]
["PT","UE",null,null,null,null,null,null,null,null,null,null,null,null,null,null,null,"LK","Sri Lanka"]
["FR","UE",null,null,null,null,null,null,null,null,null,null,null,null,null,null,null,"SR","Suriname"]
["RO","UE",null,null,null,null,null,null,null,null,null,null,null,null,null,null,null,"SZ","Swaziland"]
["RO","UE",null,null,null,null,null,null,null,null,null,null,null,null,null,null,null,"SY","Syrië"]
["RO","UE",null,null,null,null,null,null,null,null,null,null,null,null,null,null,null,"TJ","Tadzjikistan"]
["RO","UE",null,null,null,null,null,null,null,null,null,null,null,null,null,null,null,"TW","Taiwan"]
["ES","UE",null,null,null,null,null,null,null,null,null,null,null,null,null,null,null,"TZ","Tanzania"]
["RO","UE",null,null,null,null,null,null,null,null,null,null,null,null,null,null,null,"TH","Thailand"]
["RO","UE",null,null,null,null,null,null,null,null,null,null,null,null,null,null,null,"TG","Togo"]
["PL","UE",null,null,null,null,null,null,null,null,null,null,null,null,null,null,null,"TK","Tokelau-eilanden"]
["RO","UE",null,null,null,null,null,null,null,null,null,null,null,null,null,null,null,"TO","Tonga"]
["RO","UE",null,null,null,null,null,null,null,null,null,null,null,null,null,null,null,"TT","Trinidad en Tobago"]
[null,"",null,null,null,null,null,null,null,null,null,null,null,null,null,null,null,"TD","Tsjaad"]
["RO","UE",null,null,null,null,null,null,null,null,null,null,null,null,null,null,null,"CZ","Tsjechië"]
["RO","UE",null,null,null,null,null,null,null,null,null,null,null,null,null,null,null,"TN","Tunesië"]
["RO","UE",null,null,null,null,null,null,null,null,null,null,null,null,null,null,null,"TR","Turkije"]
["UK","UE",null,null,null,null,null,null,null,null,null,null,null,null,null,null,null,"TM","Turkmenistan"]
["RO","UE",null,null,null,null,null,null,null,null,null,null,null,null,null,null,null,"TC","Turks- en Caicoseilanden"]
["RO","UE",null,null,null,null,null,null,null,null,null,null,null,null,null,null,null,"TV","Tuvalu"]
["RO","UE",null,null,null,null,null,null,null,null,null,null,null,null,null,null,null,"UY","Uruguay"]
["RO","UE",null,null,null,null,null,null,null,null,null,null,null,null,null,null,null,"VU","Vanuatu"]
["RO","UE",null,null,null,null,null,null,null,null,null,null,null,null,null,null,null,"VA","Vaticaanstad"]
["RO","UE",null,null,null,null,null,null,null,null,null,null,null,null,null,null,null,"VE","Venezuela"]
["RO","UE",null,null,null,null,null,null,null,null,null,null,null,null,null,null,null,"AE","Verenigde Arabische Emiraten"]
["RO","UE",null,null,null,null,null,null,null,null,null,null,null,null,null,null,null,"US","Verenigde Staten"]
["HU","UE",null,null,null,null,null,null,null,null,null,null,null,null,null,null,null,"UK","Verenigd Koninkrijk"]
["RO","UE",null,null,null,null,null,null,null,null,null,null,null,null,null,null,null,"VN","Vietnam"]
["RO","UE",null,null,null,null,null,null,null,null,null,null,null,null,null,null,null,"WF","Wallis en Futuna"]
["RO","UE",null,null,null,null,null,null,null,null,null,null,null,null,null,null,null,"EH","Westelijke Sahara"]
["PL","UE",null,null,null,null,null,null,null,null,null,null,null,null,null,null,null,"BY","Wit-Rusland"]
["RO","UE",null,null,null,null,null,null,null,null,null,null,null,null,null,null,null,"ZM","Zambia"]
["RO","UE",null,null,null,null,null,null,null,null,null,null,null,null,null,null,null,"ZW","Zimbabwe"]
["BG","UE",null,null,null,null,null,null,null,null,null,null,null,null,null,null,null,"ZA","Zuid-Afrika"]
["RO","UE",null,null,null,null,null,null,null,null,null,null,null,null,null,null,null,"GS","Zuid-Georgia en Zuidelijke Sandwicheilanden"]
["RO","UE",null,null,null,null,null,null,null,null,null,null,null,null,null,null,null,"KR","Zuid-Korea"]
["IT","UE",null,null,null,null,null,null,null,null,null,null,null,null,null,null,null,"SS","Zuid-Soedan"]
["RO","UE",null,null,null,null,null,null,null,null,null,null,null,null,null,null,null,"SE","Zweden"]
["RO","UE",null,null,null,null,null,null,null,null,null,null,null,null,null,null,null,"CH","Zwitserland"]
["RO","UE"]
["UK","UE"]
["RO","UE"]
["RO","UE"]
["RO","UE"]
["PL",{"$f":"IF(ISBLANK(A258),\"\",(IF(OR(A258=\"AT\",A258=\"BE\",A258=\"BG\",A258=\"CY\",A258=\"CZ\",A258=\"DE\",A258=\"DK\",A258=\"EE\",A258=\"EL\",A258=\"ES\",A258=\"FI\",A258=\"FR\",A258=\"HR\",A258=\"HU\",A258=\"IE\",A258=\"IT\",A258=\"LT\",A258=\"LU\", A258=\"LV\",A258=\"MT\",A258=\"NL\",A258=\"PL\",A258=\"PT\",A258=\"RO\",A258=\"SE\",A258=\"SI\",A258=\"SK\",A258=\"UK\"),\"UE\",\"Hors UE\")))","v":"UE"}]
["RO","UE"]
["RO","UE"]
["RO","UE"]
["FR","UE"]
["RO","UE"]
["RO","UE"]
["RO","UE"]
["RO","UE"]
["RO","UE"]
["RO","UE"]
["RO","UE"]
["RO","UE"]
["RO","UE"]
["RO","UE"]
["RO","UE"]
["RO","UE"]
["FR","UE"]
["RO","UE"]
["RO","UE"]
["RO","UE"]
["RO","UE"]
["PL","UE"]
["RO","UE"]
["RO","UE"]
["RO","UE"]
["RO","UE"]
["CZ","UE"]
["RO","UE"]
["RO","UE"]
["PL","UE"]
["RO","UE"]
["PL","UE"]
["ES","UE"]
["PT","UE"]
["BG","UE"]
["FR","UE"]
["PT","UE"]
["RO","UE"]
["RO","UE"]
["RO","UE"]
["PL","UE"]
["RO","UE"]

{"sheet":"Sheet2","index":1,"n_rows":0,"n_cols":0,"rows_kept":0,"cut":false,"hidden":false,"merged":[]}

{"sheet":"Sheet3","index":2,"n_rows":0,"n_cols":0,"rows_kept":0,"cut":false,"hidden":false,"merged":[]}